bitfinex/quotes_ETHUSD_20220101
["timestamp","ask_amount","ask_price","bid_price","bid_amount"]
[1641081334982,0.00284212,3769.6,3769.1,0.6]
[1641081335181,0.00341054,3769.7,3769.1,0.3]
[1641081335383,0.00227369,3769.5,3769.0,0.31769817]
[1641081335683,0.00170527,3769.4,3769.0,0.01769817]
[1641081336082,0.6926673,3770.2,3769.0,0.01769817]
[1641081336083,0.00113685,3769.3,3769.1,0.3]
[1641081336446,0.00113685,3769.3,3769.0,0.31769817]
[1641081336648,0.00113685,3769.3,3769.0,0.01769817]
[1641081339851,0.00081795,3769.2,3769.0,0.01769817]
[1641081340885,5.7751071,3769.1,3769.0,0.01769817]
[1641081341585,8.34192426,3769.1,3769.0,0.01769817]
[1641081341983,5.7751071,3769.1,3769.0,0.01769817]
[1641081342384,8.31076427,3769.1,3769.0,0.01769817]
[1641081342586,1.3251071,3769.1,3769.0,0.01769817]
[1641081345636,4.2251071,3769.1,3769.0,0.01769817]
[1641081345841,1.3251071,3769.1,3769.0,0.01769817]
[1641081348589,3.8251071,3769.1,3769.0,0.01769817]
[1641081348790,1.3251071,3769.1,3769.0,0.01769817]
[1641081349590,4.6751071,3769.1,3769.0,0.01769817]
[1641081349994,1.3251071,3769.1,3769.0,0.01769817]
[1641081350391,1.32591334,3769.1,3769.0,0.01769817]
[1641081350793,0.00080624,3769.1,3769.0,0.01769817]
[1641081351440,0.00080624,3769.1,3769.0,2.91769817]
[1641081351640,0.00080624,3769.1,3769.0,3.91769817]
[1641081351841,0.00080624,3769.1,3769.0,4.21769817]
[1641081352042,0.00080624,3769.1,3769.0,2.91769817]
[1641081352443,0.00080624,3769.1,3769.0,0.01769817]
[1641081353443,3.25080624,3769.1,3769.0,0.01769817]
[1641081354544,7.05080624,3769.1,3769.0,0.01769817]
[1641081354743,7.35080624,3769.1,3769.0,0.01769817]
[1641081354943,7.05080624,3769.1,3769.0,0.01769817]
[1641081355586,3.25080624,3769.1,3769.0,0.01769817]
[1641081356689,0.00080624,3769.1,3769.0,0.01769817]
[1641081357492,0.00080624,3769.1,3769.0,7.06769817]
[1641081357689,0.00080624,3769.1,3769.0,10.36576098]
[1641081357893,0.00080624,3769.1,3769.0,8.36769817]
[1641081358793,0.00080624,3769.1,3769.0,10.62953361]
[1641081359034,0.00080624,3769.1,3769.0,8.36769817]
[1641081359237,0.00080624,3769.1,3769.0,10.59891068]
[1641081360837,0.00080624,3769.1,3769.0,0.01769817]
[1641081361238,1.34896618,3769.9,3769.0,0.01769817]
[1641081361636,0.00284212,3769.8,3769.0,0.01940344]
[1641081361935,0.00227369,3769.7,3769.0,0.01940344]
[1641081362335,0.00170527,3769.6,3769.0,0.01940344]
[1641081362801,0.00113684,3769.5,3769.0,2.71940344]
[1641081363186,0.00511581,3770.2,3769.0,2.71940344]
[1641081363587,0.6634,3769.7,3769.0,2.71940344]
[1641081363991,0.00170527,3769.6,3769.0,2.71940344]
[1641081364391,0.00113684,3769.5,3769.0,2.71940344]
[1641081364591,1.28917084,3769.2,3769.0,2.71940344]
[1641081364991,0.66342,3769.4,3769.0,2.71940344]
[1641081365791,0.66344,3769.3,3769.0,2.71940344]
[1641081366441,1.32686,3769.3,3769.0,2.71940344]
[1641081367436,1.36919109,3769.2,3769.0,2.71940344]
[1641081368038,1.32686,3769.3,3769.0,2.71940344]
[1641081368039,0.66342,3769.3,3769.0,2.71940344]
[1641081368239,0.00113684,3769.5,3769.0,2.71940344]
[1641081369042,0.00113684,3769.5,3769.1,1.0]
[1641081370040,0.00113684,3769.5,3769.2,0.66317]
[1641081370303,0.00113684,3769.5,3769.3,2.2534934]
[1641081370505,0.00113684,3769.5,3769.1,3.28523049]
[1641081370704,0.00113684,3769.5,3769.1,3.31163628]
[1641081370904,0.00113684,3769.5,3769.1,3.22937483]
[1641081371106,0.00113684,3769.5,3769.2,2.92278419]
[1641081371306,0.00113684,3769.5,3769.2,0.96317]
[1641081371503,0.00113684,3769.5,3769.3,1.0]
[1641081371706,0.00113684,3769.5,3769.2,0.6]
[1641081371707,0.00113684,3769.5,3769.2,2.88047175]
[1641081371908,0.00113684,3769.5,3769.2,0.3]
[1641081372103,0.00113684,3769.5,3769.3,0.3]
[1641081372308,0.00113684,3769.5,3769.2,0.3]
[1641081372504,0.00113684,3769.5,3769.3,0.6631668]
[1641081372705,0.00113684,3769.5,3769.3,0.9631668]
[1641081373208,0.00113684,3769.5,3769.3,1.9631668]
[1641081373408,0.00113684,3769.5,3769.3,0.9631668]
[1641081373605,0.00113684,3769.5,3769.4,4.55]
[1641081373807,0.00113684,3769.5,3769.3,1.3]
[1641081374046,0.00113684,3769.5,3769.3,0.3]
[1641081374548,0.00113684,3769.5,3769.2,0.3]
[1641081374745,0.00113684,3769.5,3769.0,4.04572064]
[1641081374946,0.00113684,3769.5,3769.1,1.6]
[1641081375148,0.00113684,3769.5,3769.1,1.3]
[1641081375645,0.00113684,3769.5,3769.2,2.22527048]
[1641081375846,0.00113684,3769.5,3769.2,3.55162838]
[1641081376146,0.00113684,3769.5,3769.3,0.3]
[1641081376549,0.00113684,3769.5,3769.4,8.26741571]
[1641081376947,0.00113684,3769.5,3769.4,9.26741571]
[1641081377346,0.00113684,3769.5,3769.4,7.05]
[1641081377547,0.00113684,3769.5,3769.4,9.31265551]
[1641081379202,0.06716418,3770.6,3769.5,7.0]
[1641081379404,0.06716418,3770.6,3770.3,0.01257686]
[1641081379603,0.00568424,3770.5,3770.3,0.01257686]
[1641081379809,1.35237548,3771.9,3770.3,1.33825686]
[1641081380003,1.35237548,3771.9,3770.4,2.46679338]
[1641081380202,0.00397896,3771.2,3771.1,7.79357105]
[1641081380604,0.00397896,3771.2,3771.1,9.39357105]
[1641081380803,0.00397896,3771.2,3771.1,10.70464519]
[1641081381439,0.00397896,3771.2,3771.1,8.15]
[1641081381638,0.00397896,3771.2,3771.1,10.66974822]
[1641081381837,0.00397896,3771.2,3771.1,1.26282]
[1641081382040,0.00397896,3771.2,3771.0,1.74809885]
[1641081382239,0.00397896,3771.2,3770.8,0.0671602]
[1641081382441,0.00341054,3771.1,3770.8,0.0671602]
[1641081382837,0.00284212,3771.0,3770.8,0.0671602]
[1641081383238,0.00227369,3770.9,3770.7,0.27639994]
[1641081383637,0.00170527,3770.8,3770.7,0.27639994]
[1641081384038,0.00454739,3770.8,3770.7,0.22639994]
[1641081384643,0.00454739,3770.8,3770.4,0.6629711]
[1641081384840,0.00454739,3770.8,3770.3,0.3]
[1641081385043,0.00113685,3770.7,3770.2,0.3624]
[1641081385324,0.00454739,3771.3,3770.2,0.3]
[1641081385525,0.00454739,3771.3,3770.3,0.00113685]
[1641081385926,0.00454739,3771.3,3770.2,0.96469527]
[1641081386121,0.00454739,3771.3,3770.2,0.30170527]
[1641081386322,0.00454739,3771.3,3770.3,0.00113685]
[1641081386925,0.00454739,3771.3,3770.2,0.00170527]
[1641081388327,0.00454739,3771.3,3770.3,0.66297]
[1641081388533,0.00454739,3771.3,3770.5,0.01274922]
[1641081388726,0.00454739,3771.3,3770.3,1.6257945]
[1641081388955,0.00454739,3771.3,3770.4,0.3]
[1641081389342,0.00454739,3771.3,3770.7,0.6628973]
[1641081389547,0.00454739,3771.3,3770.8,0.3]
[1641081390743,0.00454739,3771.3,3770.9,0.03448612]
[1641081390946,1.13033434,3771.3,3770.9,0.03448612]
[1641081393203,0.00454739,3771.3,3770.9,0.03448612]
[1641081394296,1.42540833,3771.3,3770.9,0.03448612]
[1641081396940,0.66312,3771.2,3770.9,0.03448612]
[1641081397340,0.00341054,3771.1,3770.9,0.03448612]
[1641081397738,4.70284212,3771.0,3770.9,0.03448612]
[1641081398541,0.00284212,3771.0,3770.9,0.03448612]
[1641081399041,0.00284212,3771.0,3770.9,5.13448612]
[1641081399440,0.00284212,3771.0,3770.9,6.43448612]
[1641081399640,0.00284212,3771.0,3770.9,5.43448612]
[1641081399841,0.00284212,3771.0,3770.9,1.33448612]
[1641081400040,0.00284212,3771.0,3770.9,0.03448612]
[1641081401693,0.00378158,3771.0,3770.9,0.03448612]
[1641081401894,2.95378158,3771.0,3770.9,0.03448612]
[1641081402994,6.10378158,3771.0,3770.9,0.03448612]
[1641081404066,2.95378158,3771.0,3770.9,0.03448612]
[1641081405874,5.75378158,3771.0,3770.9,0.03448612]
[1641081406168,2.95378158,3771.0,3770.9,0.03448612]
[1641081406969,6.20378158,3771.0,3770.9,0.03448612]
[1641081407801,2.95378158,3771.0,3770.9,0.03448612]
[1641081411554,0.00378158,3771.0,3770.9,0.03448612]
[1641081412553,0.66688158,3771.0,3770.9,0.03448612]
[1641081412754,7.01688158,3771.0,3770.9,0.03448612]
[1641081418502,0.66688158,3771.0,3770.9,0.03448612]
[1641081418944,0.00378158,3771.0,3770.9,0.03448612]
[1641081419645,0.00378158,3771.0,3770.9,3.23448612]
[1641081419847,0.00378158,3771.0,3770.9,3.53448612]
[1641081420041,0.00378158,3771.0,3770.9,4.53448612]
[1641081420648,0.00378158,3771.0,3770.9,7.58448612]
[1641081421143,0.00378158,3771.0,3770.9,4.53448612]
[1641081421546,0.00378158,3771.0,3770.9,6.71056218]
[1641081421744,0.00378158,3771.0,3770.9,4.53448612]
[1641081422344,0.00378158,3771.0,3770.9,0.03448612]
[1641081423603,3.51686158,3771.0,3770.9,0.03448612]
[1641081423803,2.85378158,3771.0,3770.9,0.03448612]
[1641081424005,0.00378158,3771.0,3770.9,0.03448612]
[1641081426304,0.66675158,3771.0,3770.9,0.03448612]
[1641081428256,5.6,3770.9,3770.3,2.7]
[1641081428451,1.3264,3770.6,3770.3,2.7]
[1641081429060,0.6925623,3770.5,3770.3,2.7]
[1641081429253,4.89120743,3770.4,3770.3,2.7]
[1641081429654,4.89120743,3770.4,3770.3,2.70113685]
[1641081430310,5.55443743,3770.4,3770.3,2.70113685]
[1641081430503,6.90681291,3770.4,3770.3,2.70113685]
[1641081430698,3.30681291,3770.4,3770.3,2.70113685]
[1641081431499,5.70681291,3770.4,3770.3,2.70113685]
[1641081431707,3.25681291,3770.4,3770.3,2.70113685]
[1641081432903,3.25768789,3770.4,3770.3,2.70113685]
[1641081433302,5.57317072,3770.4,3770.3,2.70113685]
[1641081433503,0.66322,3770.1,3769.8,6.15]
[1641081433704,0.66323,3770.0,3769.8,6.15]
[1641081433971,0.66323,3770.0,3769.9,0.00227369]
[1641081435060,1.32646,3770.0,3769.9,0.00227369]
[1641081437465,4.17646,3770.0,3769.9,0.00227369]
[1641081437708,4.3,3769.9,3769.8,6.15]
[1641081437907,6.71515336,3769.9,3769.8,6.15]
[1641081439216,8.06752884,3769.9,3769.8,6.15]
[1641081439411,6.06331,3769.8,3769.6,0.0666519]
[1641081439712,8.8429655,3769.7,3769.6,0.0666519]
[1641081440209,10.19756653,3769.7,3769.6,0.06835717]
[1641081440809,10.19756653,3769.7,3769.6,2.76835717]
[1641081441011,5.95,3769.6,3769.0,6.16769817]
[1641081441211,5.95,3769.6,3769.0,6.15]
[1641081441212,1.3267139,3769.3,3769.0,6.15]
[1641081441456,7.87441936,3768.6,3768.5,1.44435119]
[1641081441851,7.87441936,3768.6,3768.5,0.00625266]
[1641081442052,4.81818572,3768.5,3768.2,4.56356608]
[1641081442256,4.81818572,3768.5,3768.1,2.1474707]
[1641081442257,7.66361,3768.4,3768.1,2.1474707]
[1641081442452,7.66361,3768.4,3767.7,2.87431568]
[1641081442453,8.9907874,3768.4,3767.7,2.87431568]
[1641081442653,7.0,3768.4,3767.7,2.87431568]
[1641081442852,7.0,3768.4,3767.8,0.00284211]
[1641081443253,0.66355,3768.2,3767.8,0.00284211]
[1641081443453,0.66355,3768.2,3767.7,0.00341054]
[1641081443454,1.32716,3768.1,3767.7,0.00341054]
[1641081443655,2.5114613,3768.0,3767.7,0.00341054]
[1641081444257,1.32718,3768.0,3767.7,0.00341054]
[1641081444456,5.3085435,3768.2,3767.7,0.00341054]
[1641081444457,0.66355,3768.2,3767.7,0.00341054]
[1641081444657,1.51584473,3768.3,3767.7,1.30341054]
[1641081444658,2.84265473,3768.3,3767.7,1.30341054]
[1641081444860,1.32681,3768.3,3767.7,0.00341054]
[1641081445302,1.51584473,3768.5,3767.8,1.04224935]
[1641081445702,1.67441936,3768.6,3767.9,0.00227369]
[1641081445903,1.67441936,3768.6,3767.8,1.29452304]
[1641081446102,0.00341054,3768.5,3767.8,1.29452304]
[1641081446302,0.00341054,3768.5,3768.1,1.6892504]
[1641081446502,0.00284212,3768.4,3768.1,1.9892504]
[1641081447002,0.00227369,3768.3,3768.1,1.6892504]
[1641081447505,0.00170527,3768.2,3768.1,5.4392504]
[1641081447902,0.00341054,3768.2,3768.1,7.71704063]
[1641081448204,0.00341054,3768.2,3768.1,6.03673301]
[1641081448403,0.00341054,3768.2,3768.1,4.75]
[1641081449058,0.00341054,3768.2,3768.1,6.95870322]
[1641081449459,0.00341054,3768.2,3768.1,10.80870322]
[1641081449658,0.00341054,3768.2,3768.1,6.95870322]
[1641081450061,0.00341054,3768.2,3768.1,7.01171865]
[1641081450256,0.00341054,3768.2,3768.1,7.03812197]
[1641081450458,0.00341054,3768.2,3768.1,10.09758523]
[1641081451460,0.00341054,3768.2,3768.1,7.75]
[1641081451661,0.00341054,3768.2,3768.1,10.45]
[1641081452062,0.00341054,3768.2,3768.1,7.45]
[1641081452572,0.00341054,3768.2,3768.1,9.74163164]
[1641081452810,0.00341054,3768.2,3768.1,7.45]
[1641081453209,1.67441936,3768.6,3768.3,0.0010638]
[1641081453610,1.67441936,3768.6,3768.3,1.3010638]
[1641081453810,1.67441936,3768.6,3768.4,1.06703475]
[1641081454916,1.67441936,3768.6,3768.5,9.45038445]
[1641081455115,1.67441936,3768.6,3768.5,10.75038445]
[1641081456755,1.67441936,3768.6,3768.5,3.75038445]
[1641081457356,1.67441936,3768.6,3768.5,10.75038445]
[1641081457555,1.67441936,3768.6,3768.5,8.3]
[1641081459157,0.01769817,3769.0,3768.6,1.01170793]
[1641081459357,0.01769817,3769.0,3768.7,2.52415014]
[1641081459555,0.00227369,3768.9,3768.7,2.82415014]
[1641081459756,7.369e-05,3768.9,3768.8,10.87280558]
[1641081460059,0.06766958,3769.6,3768.9,7.3]
[1641081460310,0.06766958,3769.6,3769.1,1.07539621]
[1641081460505,0.06766958,3769.6,3769.2,3.56527225]
[1641081460706,0.00341054,3769.5,3769.3,2.52415014]
[1641081460907,0.00341054,3769.5,3769.3,1.0]
[1641081461106,1.35734958,3771.7,3769.5,7.0]
[1641081461405,1.35734958,3771.7,3769.8,0.5]
[1641081461406,0.6628,3771.7,3769.8,0.5]
[1641081461605,0.01136847,3771.5,3770.8,1.2983443]
[1641081461803,0.01136847,3771.5,3770.8,1.5983443]
[1641081462003,0.01080005,3771.4,3770.8,1.8983443]
[1641081462405,0.01023163,3771.3,3770.0,0.66281]
[1641081462605,0.01023163,3771.3,3770.1,2.52415014]
[1641081462809,0.0096632,3771.2,3770.1,2.52415014]
[1641081463006,0.0096632,3771.2,3770.1,2.82415014]
[1641081463210,0.00909478,3771.1,3770.1,2.82415014]
[1641081463406,1.36473508,3770.8,3770.1,0.3]
[1641081463807,0.00682109,3770.7,3770.0,1.3]
[1641081464052,0.00682109,3770.7,3770.0,3.5463234]
[1641081464252,0.00625266,3770.6,3770.0,1.3]
[1641081464453,0.00625266,3770.6,3770.0,2.82415014]
[1641081464652,1.32587,3771.3,3770.0,2.82415014]
[1641081464653,0.00568424,3770.5,3770.1,1.0]
[1641081464854,0.00568424,3770.5,3770.2,0.3]
[1641081465153,0.00511582,3770.4,3770.2,0.3]
[1641081465357,0.00511582,3770.4,3770.1,0.3]
[1641081465555,0.00088078,3770.7,3769.8,0.659]
[1641081465556,0.00454739,3770.3,3769.8,0.659]
[1641081465751,0.00454739,3770.3,3769.8,0.6]
[1641081465951,0.00397897,3770.2,3769.8,0.3]
[1641081466154,0.00397897,3770.2,3769.7,1.65107346]
[1641081466353,0.00341055,3770.1,3769.7,1.65107346]
[1641081466752,0.00284212,3770.0,3769.7,1.65107346]
[1641081467155,1.17571974,3770.6,3769.7,1.65107346]
[1641081467156,0.0022737,3769.9,3769.7,1.65107346]
[1641081467553,0.00170528,3769.8,3769.7,1.65107346]
[1641081467805,0.00170528,3769.8,3769.7,0.6]
[1641081468106,0.00170528,3769.8,3769.6,0.22639994]
[1641081468107,0.00170528,3769.8,3769.6,0.52639994]
[1641081468303,0.00170528,3769.8,3769.6,0.22639994]
[1641081468505,0.00113685,3769.7,3769.6,0.22639994]
[1641081468705,0.00113685,3769.7,3769.6,1.38529739]
[1641081469109,0.00113685,3769.7,3769.6,8.23529739]
[1641081469705,0.00113685,3769.7,3769.6,9.23529739]
[1641081470309,0.00113685,3769.7,3769.6,1.52639994]
[1641081470508,0.00113685,3769.7,3769.4,3.9328]
[1641081470711,0.00113685,3769.7,3769.3,2.94198278]
[1641081471106,0.00113685,3769.7,3769.6,1.30857078]
[1641081472163,0.00113685,3769.7,3769.6,6.25857078]
[1641081472562,0.00113685,3769.7,3769.6,2.7]
[1641081473365,0.00113685,3769.7,3769.6,4.00853242]
[1641081473764,1.11948546,3769.7,3769.6,4.00853242]
[1641081474162,5.11948546,3769.7,3769.6,2.7]
[1641081474865,1.81217464,3769.7,3769.6,2.7]
[1641081475062,4.16217464,3769.7,3769.6,2.7]
[1641081475307,1.81217464,3769.7,3769.6,2.7]
[1641081476100,4.36217464,3769.7,3769.6,2.7]
[1641081476402,1.81217464,3769.7,3769.6,2.7]
[1641081477804,4.2987353,3769.7,3769.6,2.7]
[1641081478003,4.2987353,3769.7,3769.3,0.0676671]
[1641081478004,0.66337,3769.5,3769.3,0.0676671]
[1641081478203,6.6929124,3769.4,3769.3,0.0676671]
[1641081478408,2.5429124,3769.4,3769.3,0.0676671]
[1641081478602,1.32674,3769.5,3769.3,0.06880394]
[1641081479261,1.32674,3769.5,3769.3,0.00113684]
[1641081479661,1.32674,3769.5,3769.1,0.00227369]
[1641081480263,1.32674,3769.5,3768.9,0.00341054]
[1641081480663,1.32674,3769.5,3769.0,1.30853242]
[1641081481067,1.32674,3769.5,3769.1,0.00227369]
[1641081481068,0.66322,3769.3,3769.1,0.00227369]
[1641081483404,1.32647,3769.3,3769.1,0.00227369]
[1641081483606,1.31193399,3768.9,3768.7,0.00454738]
[1641081483803,0.6633,3769.0,3768.7,0.00454738]
[1641081483804,0.60183159,3769.0,3768.7,0.00454738]
[1641081484906,1.26513159,3769.0,3768.7,0.00454738]
[1641081487150,0.66332,3768.9,3768.7,0.00454738]
[1641081487751,1.26513159,3769.0,3768.7,0.00454738]
[1641081488152,0.66332,3768.9,3768.7,0.00454738]
[1641081488954,1.80313356,3769.8,3768.7,0.00454738]
[1641081489156,0.69382603,3769.7,3768.7,1.00454738]
[1641081489554,0.69382603,3769.7,3768.8,0.00397896]
[1641081489755,0.69382603,3769.7,3768.8,1.31251138]
[1641081489954,1.16960354,3769.1,3768.8,1.31251138]
[1641081490209,0.66329,3769.0,3768.9,0.00341054]
[1641081490810,0.66329,3769.0,3768.7,0.00454738]
[1641081491011,0.66329,3769.0,3768.7,1.3130798]
[1641081491414,0.66329,3769.0,3768.8,0.00397896]
[1641081492009,0.6633143,3768.9,3768.8,0.00397896]
[1641081492209,0.6633143,3768.9,3768.7,0.00454738]
[1641081492711,1.3267443,3768.9,3768.7,0.00454738]
[1641081493611,1.3267443,3768.9,3768.7,2.70454738]
[1641081494062,1.3267443,3768.9,3768.8,0.00397896]
[1641081494063,1.2767443,3768.9,3768.8,0.00397896]
[1641081494865,0.6633143,3768.9,3768.8,0.00397896]
[1641081495059,0.6633143,3768.9,3768.7,0.00454738]
[1641081497702,3.12278149,3768.9,3768.7,0.00454738]
[1641081498105,0.6633143,3768.9,3768.7,0.00454738]
[1641081500505,2.02066388,3768.9,3768.7,0.00454738]
[1641081500704,1.35734958,3768.9,3768.7,0.00454738]
[1641081501303,2.32661,3769.0,3768.7,0.00454738]
[1641081501960,3.653302,3769.0,3768.7,0.00454738]
[1641081507214,2.98996,3769.0,3768.7,0.00454738]
[1641081508016,2.32661,3769.0,3768.7,0.00454738]
[1641081508419,4.3167432,3769.0,3768.7,0.00454738]
[1641081509268,0.66335,3768.9,3768.7,0.00454738]
[1641081509468,3.61341,3768.8,3768.7,0.00454738]
[1641081511168,4.30628289,3768.8,3768.7,0.00454738]
[1641081514105,1.35628289,3768.8,3768.7,0.00454738]
[1641081515304,0.69287289,3768.8,3768.7,0.00454738]
[1641081516304,1.35619289,3768.8,3768.7,0.00454738]
[1641081517555,0.69287289,3768.8,3768.7,0.00454738]
[1641081518558,1.35619289,3768.8,3768.7,0.00454738]
[1641081525071,4.49344945,3768.8,3768.6,1.01170793]
[1641081525268,4.45214746,3768.8,3768.6,1.01170793]
[1641081525470,2.01966289,3768.8,3768.6,1.01170793]
[1641081525776,3.34648039,3768.8,3768.6,1.01170793]
[1641081526770,3.34648039,3768.8,3768.6,7.93e-06]
[1641081526974,3.34648039,3768.8,3767.0,2.16224533]
[1641081526975,4.8,3767.5,3767.0,2.16224533]
[1641081527174,0.6637965,3767.3,3767.0,2.16224533]
[1641081527573,1.9637965,3767.3,3767.1,0.01364216]
[1641081528014,4.43765389,3767.2,3767.1,0.01364216]
[1641081528215,1.23765389,3767.2,3767.1,0.01364216]
[1641081528415,1.9914,3767.2,3767.1,0.01364216]
[1641081528615,1.9914,3767.2,3767.1,6.16364216]
[1641081529417,0.6638,3767.2,3767.1,6.16364216]
[1641081529617,0.6636,3767.4,3767.1,6.16364216]
[1641081530016,0.6636,3767.4,3767.2,0.01307373]
[1641081530417,2.4450787,3767.3,3767.2,0.01307373]
[1641081530625,0.66382,3767.0,3766.8,0.06838785]
[1641081530819,6.25,3766.9,3766.8,0.06838785]
[1641081531220,6.25,3766.9,3766.3,2.14849702]
[1641081531472,1.12482473,3766.6,3766.3,2.14849702]
[1641081531767,0.66387,3766.6,3766.4,0.00454739]
[1641081533968,3.13284679,3766.6,3766.4,0.00454739]
[1641081534168,7.04680024,3766.5,3766.4,0.00454739]
[1641081534570,0.66387,3766.6,3766.4,0.00454739]
[1641081535213,5.69318014,3766.5,3766.4,0.00454739]
[1641081535416,3.25,3766.5,3766.4,0.00454739]
[1641081536616,5.68780023,3766.5,3766.4,0.00454739]
[1641081538021,3.25,3766.5,3766.4,0.00454739]
[1641081538217,4.581,3766.5,3766.4,0.00454739]
[1641081538618,7.0137263,3766.5,3766.4,0.00454739]
[1641081538818,7.1195893,3766.5,3766.4,0.00454739]
[1641081539279,22.7195893,3766.5,3766.4,0.00454739]
[1641081539676,7.1195893,3766.5,3766.4,0.00454739]
[1641081539977,9.44276727,3766.5,3766.4,0.00454739]
[1641081540276,7.01695104,3766.5,3766.4,0.00454739]
[1641081540478,4.581,3766.5,3766.4,0.00454739]
[1641081540879,7.08356582,3766.5,3766.4,0.00454739]
[1641081541080,6.98429251,3766.5,3766.4,0.00454739]
[1641081541280,22.58429251,3766.5,3766.4,0.00454739]
[1641081541484,23.27766829,3766.5,3766.4,0.00454739]
[1641081542081,10.11361933,3766.5,3766.4,0.00454739]
[1641081542908,7.71032682,3766.5,3766.4,0.00454739]
[1641081543311,7.66565954,3766.5,3766.4,0.00454739]
[1641081543709,5.27437578,3766.5,3766.4,0.00454739]
[1641081543909,7.65894424,3766.5,3765.8,0.00795793]
[1641081544111,1.02891907,3765.9,3765.8,0.00795793]
[1641081544310,1.3279157,3766.1,3765.8,0.00795793]
[1641081544513,4.46032682,3766.5,3765.8,2.19967638]
[1641081544714,3.12932682,3766.5,3765.8,2.19967638]
[1641081544911,0.69337578,3766.5,3765.9,0.00738951]
[1641081545112,0.69337578,3766.5,3765.9,1.32469751]
[1641081545310,0.69337578,3766.5,3766.2,1.28305967]
[1641081545713,0.69337578,3766.5,3766.3,0.00511582]
[1641081547166,0.69337578,3766.5,3766.1,1.24608387]
[1641081547466,0.69337578,3766.5,3766.2,0.00568424]
[1641081548065,0.69337578,3766.5,3766.2,1.32299224]
[1641081548265,0.69337578,3766.5,3766.2,3.57928773]
[1641081548470,0.69337578,3766.5,3766.3,0.00511582]
[1641081548669,0.66372,3767.3,3766.3,0.00511582]
[1641081549068,0.96372,3767.3,3766.2,0.00568424]
[1641081549367,0.96372,3767.3,3765.9,0.00738951]
[1641081549368,0.663838,3766.9,3765.9,0.00738951]
[1641081549567,1.3277653,3767.0,3765.9,0.00738951]
[1641081549568,1.32781,3766.6,3765.9,0.00738951]
[1641081549766,0.6639,3766.6,3765.9,0.00738951]
[1641081549966,0.6639,3766.6,3765.8,0.00795793]
[1641081550223,1.02424173,3766.3,3765.8,0.00795793]
[1641081550414,0.66395,3766.2,3765.8,0.00795793]
[1641081551615,0.66397,3766.1,3765.8,0.00795793]
[1641081551816,1.32794,3766.1,3765.8,0.00795793]
[1641081553619,3.31999,3766.0,3765.8,0.00795793]
[1641081553818,6.164,3765.9,3765.8,0.00795793]
[1641081554063,6.82796,3765.9,3765.0,0.01250532]
[1641081554261,1.32796,3765.9,3765.0,0.01250532]
[1641081554760,1.04052558,3765.7,3765.0,0.01250532]
[1641081555461,1.32796,3765.9,3765.0,0.01250532]
[1641081556164,1.32786,3766.1,3765.0,0.01250532]
[1641081556563,1.05007634,3766.0,3765.0,0.01250532]
[1641081557565,0.66396,3765.9,3765.0,0.01250532]
[1641081557816,1.71402634,3766.0,3765.0,0.01250532]
[1641081558317,0.66395,3766.0,3765.0,0.01250532]
[1641081558514,1.3279,3766.3,3765.0,0.01250532]
[1641081558515,1.32779,3766.3,3765.0,0.0245704]
[1641081558718,0.66389,3766.3,3765.0,0.0245704]
[1641081558913,0.66389,3766.3,3765.1,0.0119369]
[1641081559515,7.0124,3766.7,3765.6,1.03122051]
[1641081559716,1.32768,3767.2,3765.6,1.33122051]
[1641081559916,1.38099999,3767.4,3765.7,0.00852636]
[1641081560617,1.14994827,3766.9,3765.9,0.66373]
[1641081560816,1.14994827,3766.9,3765.7,0.00852636]
[1641081561015,1.14994827,3766.9,3766.0,0.00682109]
[1641081561218,1.14994827,3766.9,3765.7,0.00852636]
[1641081561880,1.81372827,3766.9,3765.7,0.67230636]
[1641081562276,1.81372827,3766.9,3765.8,0.00795793]
[1641081566714,1.14994827,3766.9,3765.9,0.66375]
[1641081567013,0.66375,3767.1,3766.0,0.00682109]
[1641081567813,0.66375,3767.1,3766.0,0.67054249]
[1641081568016,1.78475531,3767.1,3766.2,1.08898078]
[1641081568415,1.78475531,3767.1,3766.3,0.00511582]
[1641081569067,3.14031581,3767.1,3766.3,0.00511582]
[1641081569866,2.0193105,3767.1,3766.3,0.00511582]
[1641081570070,1.3555605,3767.1,3766.3,0.00511582]
[1641081570267,1.3555605,3767.1,3766.6,0.01223108]
[1641081570666,1.3555605,3767.1,3766.7,0.00284212]
[1641081571168,3.12794575,3767.6,3767.3,0.6634911]
[1641081571169,0.60175825,3767.6,3767.3,0.6634911]
[1641081571570,0.00170527,3767.5,3767.4,0.3]
[1641081571766,0.00170527,3767.5,3767.3,0.6634911]
[1641081571966,0.00170527,3767.5,3767.3,0.9634911]
[1641081572168,0.60175825,3767.6,3767.3,0.9634911]
[1641081572169,0.00113684,3767.4,3767.3,0.6634911]
[1641081572367,0.00113684,3767.4,3767.3,9.16106432]
[1641081572566,0.00113684,3767.4,3767.3,3.36491432]
[1641081572818,0.00113684,3767.4,3767.3,3.06491432]
[1641081573620,0.00113684,3767.4,3767.3,0.6634911]
[1641081573818,0.00113684,3767.4,3767.1,2.94101453]
[1641081573819,0.00113684,3767.4,3767.1,1.3269584]
[1641081574020,0.00113684,3767.4,3767.0,1.317308]
[1641081574620,0.00113684,3767.4,3767.2,1.317308]
[1641081575123,0.00113684,3767.4,3767.0,1.75633767]
[1641081575124,0.00113684,3767.4,3766.7,0.07041336]
[1641081575520,0.00113684,3767.4,3766.8,0.0022737]
[1641081576564,0.00113684,3767.4,3766.8,4.0195817]
[1641081576768,0.00113684,3767.4,3766.9,2.17902593]
[1641081576964,0.00113684,3767.4,3766.9,0.00170528]
[1641081577164,0.00113684,3767.4,3767.0,0.00113685]
[1641081577365,0.00113684,3767.4,3766.9,0.00170528]
[1641081578466,0.66484684,3767.4,3766.9,0.00170528]
[1641081578666,1.32861684,3767.4,3766.9,0.00170528]
[1641081578966,2.02046734,3767.4,3766.9,0.00170528]
[1641081579369,0.66382,3767.3,3766.9,0.00170528]
[1641081579568,0.66379,3767.2,3766.9,0.00170528]
[1641081579768,1.32701964,3767.1,3766.9,0.00170528]
[1641081580223,0.66379,3767.2,3766.9,0.00170528]
[1641081580422,1.32759,3767.2,3766.9,0.00170528]
[1641081580620,0.66379,3767.2,3766.9,0.00170528]
[1641081581620,1.69865475,3767.2,3766.9,0.00170528]
[1641081582621,2.36244475,3767.2,3766.9,0.00170528]
[1641081582821,0.66379,3767.2,3766.9,0.00170528]
[1641081583973,0.66484684,3767.4,3766.9,0.00170528]
[1641081586374,0.6638,3767.2,3766.9,0.00170528]
[1641081587571,1.32759,3767.2,3766.9,0.00170528]
[1641081588817,0.6638,3767.2,3766.9,0.00170528]
[1641081589318,2.02040734,3767.4,3766.9,0.00170528]
[1641081589518,0.66484684,3767.4,3766.9,0.00170528]
[1641081593465,1.32859684,3767.4,3766.9,0.00170528]
[1641081593665,0.66376,3767.2,3766.9,0.00170528]